fUST/lending_fUST_20241217
["ID","MTS","AMOUNT","RATE_DAILY","PERIOD"]
[345704744,1734427836230,-579.982,0.0002517,2]
[345704745,1734427836239,-500.0,0.00025205,6]
[345704746,1734427836249,-500.0,0.00025205,6]
[345704747,1734427836258,-500.0,0.00025205,6]
[345704748,1734427836268,-500.0,0.00025205,6]
[345704749,1734427836277,-500.0,0.00025205,6]
[345704750,1734427836287,-675.43,0.00025205,6]
[345704751,1734427836296,-500.0,0.00025205,6]
[345704752,1734427836306,-500.0,0.00025205,6]
[345704753,1734427836316,-500.0,0.00025205,6]
[345704754,1734427836326,-500.0,0.00025205,6]
[345704755,1734427836336,-500.0,0.00025205,6]
[345704756,1734427836346,-524.99,0.00025205,6]
[345704757,1734427836355,-500.0,0.00025205,6]
[345704758,1734427836364,-1083.55,0.00025205,6]
[345704759,1734427836374,-1312.03,0.00025205,6]
[345704760,1734427836383,-560.16,0.00025205,6]
[345704761,1734427836392,-500.0,0.00025205,6]
[345704762,1734427836402,-925.01,0.00025205,6]
[345704763,1734427836412,-500.0,0.00025205,6]
[345704764,1734427836422,-500.0,0.00025205,6]
[345704765,1734427836432,-500.0,0.00025205,6]
[345704766,1734427836441,-500.0,0.00025205,6]
[345704767,1734427836452,-559.57,0.00025205,6]
[345704768,1734427836463,-500.0,0.00025205,6]
[345704769,1734427836471,-500.0,0.00025205,6]
[345704770,1734427836481,-577.87,0.00025205,6]
[345704771,1734427836490,-500.0,0.00025205,6]
[345704772,1734427836499,-1322.95,0.00025205,6]
[345704773,1734427836509,-500.0,0.00025205,6]
[345704774,1734427836518,-500.0,0.00025205,6]
[345704775,1734427836528,-535.19,0.00025205,6]
[345704776,1734427836538,-500.0,0.00025205,6]
[345704777,1734427836547,-172.95,0.00025205,6]
[345704778,1734427836558,-500.0,0.00025205,6]
[345704779,1734427836567,-1369.7,0.00025205,2]
[345704780,1734427836577,-1286.55,0.00025205,6]
[345704781,1734427836587,-591.85,0.00025205,6]
[345704782,1734427836597,-1308.26,0.00025205,6]
[345704783,1734427836610,-500.0,0.00025205,6]
[345704784,1734427836619,-976.82,0.00025205,6]
[345704785,1734427836629,-500.0,0.00025205,6]
[345704786,1734427836639,-1114.89,0.00025205,6]
[345704787,1734427836648,-500.0,0.00025205,6]
[345704788,1734427836657,-816.16,0.00025205,6]
[345704789,1734427836667,-1081.1,0.00025205,6]
[345704790,1734427836676,-500.0,0.00025205,6]
[345704791,1734427836687,-834.03,0.00025205,6]
[345704792,1734427836696,-500.0,0.00025205,6]
[345704793,1734427836705,-1073.08,0.00025205,6]
[345704794,1734427836715,-500.0,0.00025205,6]
[345704795,1734427836725,-500.0,0.00025205,6]
[345704796,1734427836735,-1242.32,0.00025205,6]
[345704797,1734427836745,-500.0,0.00025205,2]
[345704798,1734427836754,-500.0,0.00025205,6]
[345704799,1734427836764,-500.0,0.00025205,6]
[345704800,1734427836773,-500.0,0.00025205,6]
[345704801,1734427836783,-500.0,0.00025205,6]
[345704802,1734427836792,-500.0,0.00025205,6]
[345704803,1734427836801,-1343.05,0.00025205,6]
[345704804,1734427836812,-1010.65,0.00025205,6]
[345704805,1734427836822,-676.97,0.00025205,6]
[345704806,1734427836832,-500.0,0.00025205,6]
[345704807,1734427836842,-500.0,0.00025205,6]
[345704808,1734427836852,-1266.72,0.00025205,6]
[345704809,1734427836862,-500.04330788,0.00025205,6]
[345704810,1734427836872,-504.65,0.00025205,6]
[345704811,1734427836882,-500.0,0.00025205,6]
[345704812,1734427836892,-500.0,0.00025205,6]
[345704813,1734427836902,-500.0,0.00025205,6]
[345704814,1734427836912,-657.45,0.00025205,6]
[345704815,1734427836921,-500.0,0.00025205,6]
[345704816,1734427836931,-521.36,0.00025205,6]
[345704817,1734427836941,-500.0,0.00025205,6]
[345704818,1734427836951,-1459.41,0.00025205,6]
[345704819,1734427836961,-500.0,0.00025205,6]
[345704820,1734427836971,-500.0,0.00025205,6]
[345704821,1734427836980,-798.1,0.00025205,6]
[345704822,1734427836991,-4941.58,0.00025205,6]
[345704823,1734427837001,-1119.55,0.00025205,6]
[345704824,1734427837011,-7395.52,0.00025205,6]
[345704825,1734427837021,-812.52,0.00025205,6]
[345704826,1734427837031,-6525.25,0.00025205,6]
[345704827,1734427837041,-5919.73,0.00025205,6]
[345704828,1734427837050,-996.86,0.00025205,6]
[345704829,1734427837061,-1579.3,0.00025205,6]
[345704830,1734427837071,-500.0,0.00025205,6]
[345704831,1734427837080,-500.0,0.00025205,6]
[345704832,1734427837090,-500.0,0.00025205,6]
[345704833,1734427837100,-500.0,0.00025205,6]
[345704834,1734427837109,-726.04,0.00025205,6]
[345704835,1734427837119,-910.22,0.00025205,6]
[345704836,1734427837128,-24611.14,0.00025205,6]
[345704837,1734427837142,-8449.25,0.00025205,5]
[345704838,1734427837151,-1347.38,0.00025205,6]
[345704839,1734427837161,-500.0,0.00025205,6]
[345704840,1734427837171,-500.0,0.00025205,6]
[345704841,1734427837180,-647.09,0.00025205,6]
[345704842,1734427837189,-920.89,0.00025205,6]
[345704843,1734427837199,-500.0,0.00025205,6]
[345704844,1734427837209,-500.0,0.00025205,6]
[345704845,1734427837218,-500.0,0.00025205,6]
[345704846,1734427837228,-500.0,0.00025205,6]
[345704847,1734427837238,-500.0,0.00025205,6]
[345704848,1734427837247,-1502.21,0.00025205,6]
[345704849,1734427837259,-500.0,0.00025205,6]
[345704850,1734427837271,-1598.49,0.00025205,6]
[345704851,1734427837283,-355.08715267,0.00025205,6]
[345704852,1734427837295,-873.75,0.00025205,6]
[345704853,1734427837309,-500.0,0.00025205,6]
[345704854,1734427837321,-889.15,0.00025205,6]
[345704855,1734427837332,-500.0,0.00025205,6]
[345704856,1734427837344,-3450.78,0.00025205,6]
[345704857,1734427837355,-1979.01,0.00025205,6]
[345704858,1734427837366,-3835.79,0.00025205,6]
[345704859,1734427837376,-500.0,0.00025205,6]
[345704860,1734427837388,-500.0,0.00025205,6]
[345704861,1734427837400,-1014.73,0.00025205,6]
[345704862,1734427837410,-500.0,0.00025205,6]
[345704863,1734427837421,-500.0,0.00025205,6]
[345704864,1734427837432,-500.0,0.00025205,6]
[345704865,1734427837444,-602.38,0.00025205,6]
[345704866,1734427837455,-500.0,0.00025205,6]
[345704867,1734427837467,-823.12,0.00025205,6]
[345704868,1734427837479,-1539.34,0.00025205,6]
[345704869,1734427837490,-500.0,0.00025205,6]
[345704870,1734427837501,-637.17,0.00025205,6]
[345704871,1734427837513,-1785.24,0.00025205,6]
[345704872,1734427837525,-500.0,0.00025205,6]
[345704873,1734427837536,-518.62,0.00025205,6]
[345704874,1734427837548,-593.8,0.00025205,6]
[345704875,1734427837560,-1296.47,0.00025205,6]
[345704876,1734427837571,-606.67,0.00025205,6]
[345704877,1734427837584,-1457.92,0.00025205,6]
[345704878,1734427837595,-500.0,0.00025205,6]
[345704879,1734427837610,-1379.92,0.00025205,6]
[345704880,1734427837621,-1072.62,0.00025205,6]
[345704881,1734427837632,-630.65,0.00025205,6]
[345704882,1734427837643,-500.0,0.00025205,6]
[345704883,1734427837654,-582.05,0.00025205,6]
[345704884,1734427837666,-632.79,0.00025205,6]
[345704885,1734427837679,-1174.69,0.00025205,6]
[345704886,1734427837692,-500.0,0.00025205,6]
[345704887,1734427837703,-676.58,0.00025205,6]
[345704888,1734427837714,-500.0,0.00025479,6]
[345704889,1734427837726,-500.0,0.00025479,6]
[345704890,1734427837738,-500.0,0.00025479,6]
[345704891,1734427837748,-500.0,0.00025479,6]
[345704892,1734427837758,-500.0,0.00025479,6]
[345704893,1734427837768,-675.43,0.00025479,6]
[345704894,1734427837779,-500.0,0.00025479,6]
[345704895,1734427837792,-500.0,0.00025479,6]
[345704896,1734427837803,-500.0,0.00025479,6]
[345704897,1734427837819,-500.0,0.00025479,6]
[345704898,1734427837831,-500.0,0.00025479,6]
[345704899,1734427837843,-524.99,0.00025479,6]
[345704900,1734427837854,-500.0,0.00025479,6]
[345704901,1734427837866,-1083.55,0.00025479,6]
[345704902,1734427837879,-1312.03,0.00025479,6]
[345704903,1734427837891,-560.16,0.00025479,6]
[345704904,1734427837902,-500.0,0.00025479,6]
[345704905,1734427837915,-925.01,0.00025479,6]
[345704906,1734427837928,-500.0,0.00025479,6]
[345704907,1734427837939,-500.0,0.00025479,6]
[345704908,1734427837951,-500.0,0.00025479,6]
[345704909,1734427837963,-500.0,0.00025479,6]
[345704910,1734427837975,-559.57,0.00025479,6]
[345704911,1734427837986,-500.0,0.00025479,6]
[345704912,1734427837998,-500.0,0.00025479,6]
[345704913,1734427838008,-577.87,0.00025479,6]
[345704914,1734427838017,-500.0,0.00025479,6]
[345704915,1734427838027,-1322.95,0.00025479,6]
[345704916,1734427838036,-500.0,0.00025479,6]
[345704917,1734427838046,-500.0,0.00025479,6]
[345704918,1734427838056,-535.19,0.00025479,6]
[345704919,1734427838068,-500.0,0.00025479,6]
[345704920,1734427838080,-172.95,0.00025479,6]
[345704921,1734427838091,-500.0,0.00025479,6]
[345704922,1734427838103,-1369.7,0.00025479,2]
[345704923,1734427838116,-1286.55,0.00025479,6]
[345704924,1734427838126,-591.85,0.00025479,6]
[345704925,1734427838138,-1308.26,0.00025479,6]
[345704926,1734427838149,-500.0,0.00025479,6]
[345704927,1734427838159,-976.82,0.00025479,6]
[345704928,1734427838169,-500.0,0.00025479,6]
[345704929,1734427838179,-1114.89,0.00025479,6]
[345704930,1734427838190,-500.0,0.00025479,6]
[345704931,1734427838200,-816.16,0.00025479,6]
[345704932,1734427838211,-1081.1,0.00025479,6]
[345704933,1734427838222,-500.0,0.00025479,6]
[345704935,1734427838234,-834.03,0.00025479,6]
[345704936,1734427838245,-500.0,0.00025479,6]
[345704937,1734427838255,-1073.08,0.00025479,6]
[345704939,1734427838265,-358.8950801,0.00025479,6]
[345704941,1734427838275,-500.0,0.00025479,6]
[345704942,1734427838286,-1242.32,0.00025479,6]
[345704943,1734427838296,-500.0,0.00025479,2]
[345704944,1734427838306,-500.0,0.00025479,6]
[345704945,1734427838318,-500.0,0.00025479,6]
[345704946,1734427838329,-500.0,0.00025479,6]
[345704947,1734427838339,-500.0,0.00025479,6]
[345704948,1734427838350,-500.0,0.00025479,6]
[345704949,1734427838361,-1343.05,0.00025479,6]
[345704950,1734427838371,-1010.65,0.00025479,6]
[345704952,1734427838382,-676.97,0.00025479,6]
[345704954,1734427838393,-500.0,0.00025479,6]
[345704956,1734427838404,-500.0,0.00025479,6]
[345704958,1734427838415,-1266.72,0.00025479,6]
[345704960,1734427838425,-504.65,0.00025479,6]
[345704962,1734427838436,-500.0,0.00025479,6]
[345704964,1734427838446,-500.0,0.00025479,6]
[345704966,1734427838456,-500.0,0.00025479,6]
[345704967,1734427838466,-657.45,0.00025479,6]
[345704969,1734427838477,-500.0,0.00025479,6]
[345704971,1734427838487,-521.36,0.00025479,6]
[345704973,1734427838497,-500.0,0.00025479,6]
[345704975,1734427838508,-1459.41,0.00025479,6]
[345704977,1734427838518,-500.0,0.00025479,6]
[345704979,1734427838529,-500.0,0.00025479,6]
[345704980,1734427838540,-798.1,0.00025479,6]
[345704981,1734427838550,-4941.58,0.00025479,6]
[345704982,1734427838563,-1119.55,0.00025479,6]
[345704983,1734427838574,-7395.52,0.00025479,6]
[345704984,1734427838585,-812.52,0.00025479,6]
[345704985,1734427838597,-6525.25,0.00025479,6]
[345704986,1734427838610,-5919.73,0.00025479,6]
[345704988,1734427838621,-996.86,0.00025479,6]
[345704989,1734427838632,-1579.3,0.00025479,6]
[345704990,1734427838643,-500.0,0.00025479,6]
[345704991,1734427838653,-500.0,0.00025479,6]
[345704992,1734427838664,-500.0,0.00025479,6]
[345704993,1734427838675,-500.0,0.00025479,6]
[345704994,1734427838685,-726.04,0.00025479,6]
[345704995,1734427838696,-910.22,0.00025479,6]
[345704996,1734427838707,-24611.14,0.00025479,6]
[345704997,1734427838718,-8449.25,0.00025479,5]
[345704998,1734427838731,-1347.38,0.00025479,6]
[345704999,1734427838741,-500.0,0.00025479,6]
[345705000,1734427838752,-500.0,0.00025479,6]
[345705001,1734427838763,-647.09,0.00025479,6]
[345705002,1734427838774,-920.89,0.00025479,6]
[345705003,1734427838785,-500.0,0.00025479,6]
[345705004,1734427838795,-500.0,0.00025479,6]
[345705005,1734427838806,-500.0,0.00025479,6]
[345705006,1734427838819,-500.0,0.00025479,6]
[345705007,1734427838829,-500.0,0.00025479,6]
[345705008,1734427838840,-1502.21,0.00025479,6]
[345705009,1734427838850,-500.0,0.00025479,6]
[345705010,1734427838860,-1598.49,0.00025479,6]
[345705011,1734427838871,-873.75,0.00025479,6]
[345705012,1734427838882,-500.0,0.00025479,6]
[345705013,1734427838892,-889.15,0.00025479,6]
[345705014,1734427838903,-500.0,0.00025479,6]
[345705015,1734427838913,-3450.78,0.00025479,6]
[345705016,1734427838923,-1979.01,0.00025479,6]
[345705017,1734427838934,-3835.79,0.00025479,6]
[345705018,1734427838944,-500.0,0.00025479,6]
[345705019,1734427838955,-500.0,0.00025479,6]
[345705020,1734427838965,-1014.73,0.00025479,6]
[345705021,1734427838975,-390.89442135,0.00025479,6]
[345705022,1734427838986,-500.0,0.00025479,6]
[345705023,1734427838996,-500.0,0.00025479,6]
[345705024,1734427839007,-602.38,0.00025479,6]
[345705025,1734427839017,-500.0,0.00025479,6]
[345705027,1734427839028,-823.12,0.00025479,6]
[345705028,1734427839038,-1539.34,0.00025479,6]
[345705029,1734427839048,-500.0,0.00025479,6]
[345705030,1734427839061,-637.17,0.00025479,6]
[345705031,1734427839071,-1785.24,0.00025479,6]
[345705032,1734427839082,-518.62,0.00025479,6]
[345705033,1734427839093,-500.0,0.00025479,6]
[345705034,1734427839104,-593.8,0.00025479,6]
[345705035,1734427839114,-1296.47,0.00025479,6]
[345705036,1734427839124,-606.67,0.00025479,6]
[345705037,1734427839134,-1457.92,0.00025479,6]
[345705038,1734427839144,-500.0,0.00025479,6]
[345705039,1734427839154,-1379.92,0.00025479,6]
[345705040,1734427839165,-1072.62,0.00025479,6]
[345705041,1734427839175,-630.65,0.00025479,6]
[345705042,1734427839186,-500.0,0.00025479,6]
[345705043,1734427839196,-582.05,0.00025479,6]
[345705044,1734427839206,-632.79,0.00025479,6]
[345705045,1734427839216,-1174.69,0.00025479,6]
[345705046,1734427839226,-500.0,0.00025479,6]
[345705047,1734427839237,-676.58,0.00025479,6]
[345705048,1734427839247,-500.0,0.00025753,6]
[345705049,1734427839257,-500.0,0.00025753,6]
[345705050,1734427839267,-500.0,0.00025753,6]
[345705051,1734427839277,-500.0,0.00025753,6]
[345705052,1734427839287,-500.0,0.00025753,6]
[345705053,1734427839297,-675.43,0.00025753,6]
[345705054,1734427839307,-500.0,0.00025753,6]
[345705055,1734427839319,-598.93198017,0.00025753,6]
[345705056,1734427839328,-500.0,0.00025753,6]
[345705057,1734427839338,-500.0,0.00025753,6]
[345705058,1734427839348,-500.0,0.00025753,6]
[345705059,1734427839358,-524.99,0.00025753,6]
[345705060,1734427839368,-500.0,0.00025753,6]
[345705061,1734427839378,-1083.55,0.00025753,6]
[345705062,1734427839388,-1312.03,0.00025753,6]
[345705063,1734427839398,-560.16,0.00025753,6]
[345705064,1734427839407,-500.0,0.00025753,6]
[345705065,1734427839417,-925.01,0.00025753,6]
[345705066,1734427839427,-500.0,0.00025753,6]
[345705067,1734427839437,-500.0,0.00025753,6]
[345705068,1734427839447,-500.0,0.00025753,6]
[345705069,1734427839457,-500.0,0.00025753,6]
[345705070,1734427839467,-559.57,0.00025753,6]
[345705071,1734427839477,-500.0,0.00025753,6]
[345705072,1734427839487,-500.0,0.00025753,6]
[345705073,1734427839497,-577.87,0.00025753,6]
[345705074,1734427839507,-500.0,0.00025753,6]
[345705075,1734427839516,-1322.95,0.00025753,6]
[345705076,1734427839526,-500.0,0.00025753,6]
[345705077,1734427839536,-500.0,0.00025753,6]
[345705078,1734427839546,-535.19,0.00025753,6]
[345705079,1734427839556,-290.98240275,0.00025753,6]
[345705080,1734427839568,-172.95,0.00025753,6]
[345705081,1734427839578,-500.0,0.00025753,6]
[345705082,1734427839588,-1369.7,0.00025753,2]
[345705083,1734427839600,-1286.55,0.00025753,6]
[345705084,1734427839612,-591.85,0.00025753,6]
[345705085,1734427839622,-1308.26,0.00025753,6]
[345705086,1734427839632,-500.0,0.00025753,6]
[345705087,1734427839643,-976.82,0.00025753,6]
[345705088,1734427839653,-500.0,0.00025753,6]
[345705089,1734427839663,-1114.89,0.00025753,6]
[345705090,1734427839673,-500.0,0.00025753,6]
[345705091,1734427839683,-816.16,0.00025753,6]
[345705092,1734427839694,-1081.1,0.00025753,6]
[345705093,1734427839704,-500.0,0.00025753,6]
[345705094,1734427839714,-834.03,0.00025753,6]
[345705095,1734427839724,-500.0,0.00025753,6]
[345705096,1734427839734,-1073.08,0.00025753,6]
[345705097,1734427839745,-500.0,0.00025753,6]
[345705098,1734427839755,-1242.32,0.00025753,6]
[345705099,1734427840015,-500.0,0.00025753,2]
[345705100,1734427840022,-500.0,0.00025753,6]
[345705101,1734427840028,-500.0,0.00025753,6]
[345705102,1734427840035,-500.0,0.00025753,6]
[345705103,1734427840042,-500.0,0.00025753,6]
[345705104,1734427840051,-500.0,0.00025753,6]
[345705105,1734427840060,-1343.05,0.00025753,6]
[345705106,1734427840069,-1010.65,0.00025753,6]
[345705107,1734427840078,-676.97,0.00025753,6]
[345705108,1734427840088,-500.0,0.00025753,6]
[345705109,1734427840098,-500.0,0.00025753,6]
[345705110,1734427840107,-1266.72,0.00025753,6]
[345705111,1734427840117,-504.65,0.00025753,6]
[345705112,1734427840126,-500.0,0.00025753,6]
[345705113,1734427840135,-500.0,0.00025753,6]
[345705115,1734427840145,-500.0,0.00025753,6]
[345705117,1734427840154,-657.45,0.00025753,6]
[345705118,1734427840163,-219.94647251,0.00025753,6]
[345705119,1734427840172,-521.36,0.00025753,6]
[345705120,1734427840181,-500.0,0.00025753,6]
[345705121,1734427840190,-1459.41,0.00025753,6]
[345705122,1734427840199,-500.0,0.00025753,6]
[345705123,1734427840208,-500.0,0.00025753,6]
[345705124,1734427840218,-798.1,0.00025753,6]
[345705125,1734427840227,-4941.58,0.00025753,6]
[345705126,1734427840236,-1119.55,0.00025753,6]
[345705127,1734427840245,-7395.52,0.00025753,6]
[345705128,1734427840255,-812.52,0.00025753,6]
[345705129,1734427840264,-6525.25,0.00025753,6]
[345705130,1734427840273,-5919.73,0.00025753,6]
[345705131,1734427840283,-996.86,0.00025753,6]
[345705132,1734427840291,-1579.3,0.00025753,6]
[345705133,1734427840301,-500.0,0.00025753,6]
[345705134,1734427840310,-500.0,0.00025753,6]
[345705135,1734427840319,-500.0,0.00025753,6]
[345705136,1734427840328,-500.0,0.00025753,6]
[345705137,1734427840338,-726.04,0.00025753,6]
[345705138,1734427840347,-910.22,0.00025753,6]
[345705139,1734427840356,-24611.14,0.00025753,6]
[345705140,1734427840365,-8449.25,0.00025753,5]
[345705141,1734427840375,-1347.38,0.00025753,6]
[345705143,1734427840384,-500.0,0.00025753,6]
[345705144,1734427840393,-500.0,0.00025753,6]
[345705145,1734427840402,-647.09,0.00025753,6]
[345705146,1734427840411,-920.89,0.00025753,6]
[345705147,1734427840420,-500.0,0.00025753,6]
[345705148,1734427840429,-500.0,0.00025753,6]
[345705149,1734427840439,-312.38539075,0.00025753,6]
[345705151,1734427840448,-500.0,0.00025753,6]
[345705153,1734427840457,-500.0,0.00025753,6]
[345705155,1734427840466,-1502.21,0.00025753,6]
[345705157,1734427840475,-500.0,0.00025753,6]
[345705159,1734427840484,-1598.49,0.00025753,6]
[345705160,1734427840493,-873.75,0.00025753,6]
[345705162,1734427840503,-500.0,0.00025753,6]
[345705165,1734427840515,-889.15,0.00025753,6]
[345705167,1734427840526,-500.0,0.00025753,6]
[345705169,1734427840536,-3450.78,0.00025753,6]
[345705171,1734427840545,-1979.01,0.00025753,6]
[345705173,1734427840555,-3835.79,0.00025753,6]
[345705175,1734427840566,-500.0,0.00025753,6]
[345705177,1734427840576,-500.0,0.00025753,6]
[345705179,1734427840585,-1014.73,0.00025753,6]
[345705181,1734427840595,-500.0,0.00025753,6]
[345705183,1734427840606,-500.0,0.00025753,6]
[345705185,1734427840616,-602.38,0.00025753,6]
[345705187,1734427840625,-500.0,0.00025753,6]
[345705189,1734427840634,-823.12,0.00025753,6]
[345705191,1734427840645,-1539.34,0.00025753,6]
[345705193,1734427840654,-500.0,0.00025753,6]
[345705196,1734427840666,-637.17,0.00025753,6]
[345705198,1734427840677,-1785.24,0.00025753,6]
[345705200,1734427840687,-518.62,0.00025753,6]
[345705202,1734427840696,-500.0,0.00025753,6]
[345705204,1734427840706,-593.8,0.00025753,6]
[345705206,1734427840714,-1296.47,0.00025753,6]
[345705208,1734427840723,-606.67,0.00025753,6]
[345705210,1734427840733,-1457.92,0.00025753,6]
[345705212,1734427840742,-500.0,0.00025753,6]
[345705214,1734427840752,-1379.92,0.00025753,6]
[345705216,1734427840761,-1072.62,0.00025753,6]
[345705218,1734427840770,-630.65,0.00025753,6]
[345705219,1734427840780,-500.0,0.00025753,6]
[345705221,1734427840790,-582.05,0.00025753,6]
[345705224,1734427840800,-632.79,0.00025753,6]
[345705226,1734427840811,-1174.69,0.00025753,6]
[345705227,1734427840825,-500.0,0.00025753,6]
[345705230,1734427840835,-676.58,0.00025753,6]
[345705231,1734427840845,-400.0,0.00025753,2]
[345705233,1734427840854,-154.9808494,0.00025753,2]
[345705235,1734427840864,-153.0,0.00025753,2]
[345705238,1734427840874,-153.0,0.00025753,2]
[345705239,1734427840884,-153.0,0.00025753,2]
[345705241,1734427840894,-153.0,0.00025753,2]
[345705243,1734427840903,-153.0,0.00025753,2]
[345705245,1734427840912,-153.0,0.00025753,2]
[345705247,1734427840922,-153.0,0.00025753,2]
[345705249,1734427840931,-153.0,0.00025753,2]
[345705252,1734427840942,-153.0,0.00025753,2]
[345705254,1734427840951,-153.0,0.00025753,2]
[345705255,1734427840961,-153.0,0.00025753,2]
[345705257,1734427840970,-1884.77,0.000258,14]
[345705259,1734427840980,-153.0,0.00025813,2]
[345705261,1734427840989,-153.0,0.00025813,2]
[345705263,1734427840998,-153.0,0.00025813,2]
[345705265,1734427841008,-153.0,0.00025813,2]
[345705267,1734427841019,-153.0,0.00025813,2]
[345705269,1734427841028,-153.0,0.00025813,2]
[345705271,1734427841038,-153.0,0.00025813,2]
[345705273,1734427841047,-153.0,0.00025813,2]
[345705275,1734427841058,-153.0,0.00025813,2]
[345705277,1734427841067,-153.0,0.00025813,2]
[345705279,1734427841076,-153.0,0.00025813,2]
[345705281,1734427841085,-153.0,0.00025813,2]
[345705283,1734427841094,-153.0,0.00025813,2]
[345705285,1734427841103,-153.0,0.00025813,2]
[345705287,1734427841113,-153.0,0.00025813,2]
[345705289,1734427841122,-153.0,0.00025813,2]
[345705291,1734427841131,-153.0,0.00025813,2]
[345705293,1734427841140,-153.0,0.00025813,2]
[345705295,1734427841150,-153.0,0.00025813,2]
[345705297,1734427841159,-153.0,0.0002589,2]
[345705300,1734427841169,-351.798756,0.00025941,2]
[345705301,1734427841178,-544.58090129,0.00025999,2]
[345705303,1734427841187,-184.44221375,0.00025999,2]
[345705304,1734427841196,-155.68969276,0.00025999,2]
[345705305,1734427841206,-112142.56152674,0.00026,2]
[345705306,1734427841216,-81905.49873708,0.00026,5]
[345705308,1734427841225,-59440.17574541,0.00026,20]
[345705310,1734427841234,-1305.89261689,0.00026,120]
[345705312,1734427841243,-270205.59665564,0.00026,3]
[345705314,1734427841252,-500.0,0.00026027,6]
[345705316,1734427841261,-500.0,0.00026027,6]
[345705318,1734427841271,-500.0,0.00026027,6]
[345705320,1734427841280,-500.0,0.00026027,6]
[345705322,1734427841289,-500.0,0.00026027,6]
[345705324,1734427841298,-675.43,0.00026027,6]
[345705326,1734427841307,-238.84315742,0.00026027,6]
[345705328,1734427841317,-500.0,0.00026027,6]
[345705330,1734427841326,-215.36943086,0.00026027,6]
[345705332,1734427841336,-500.0,0.00026027,6]
[345705334,1734427841345,-524.99,0.00026027,6]
[345705336,1734427841354,-500.0,0.00026027,6]
[345705338,1734427841363,-1083.55,0.00026027,6]
[345705340,1734427841372,-1312.03,0.00026027,6]
[345705342,1734427841382,-560.16,0.00026027,6]
[345705344,1734427841391,-500.0,0.00026027,6]
[345705346,1734427841400,-925.01,0.00026027,6]
[345705348,1734427841409,-500.0,0.00026027,6]
[345705350,1734427841418,-500.0,0.00026027,6]
[345705352,1734427841427,-500.0,0.00026027,6]
[345705354,1734427841436,-500.0,0.00026027,6]
[345705356,1734427841445,-559.57,0.00026027,6]
[345705358,1734427841454,-500.0,0.00026027,6]
[345705360,1734427841463,-500.0,0.00026027,6]
[345705362,1734427841472,-577.87,0.00026027,6]
[345705364,1734427841482,-500.0,0.00026027,6]
[345705366,1734427841491,-1322.95,0.00026027,6]
[345705368,1734427841500,-500.0,0.00026027,6]
[345705370,1734427841509,-500.0,0.00026027,6]
[345705372,1734427841519,-535.19,0.00026027,6]
[345705374,1734427841528,-172.95,0.00026027,6]
[345705376,1734427841537,-500.0,0.00026027,6]
[345705378,1734427841546,-1369.7,0.00026027,2]